bitfinex-derivatives/quotes_ETHF0:USTF0_20250502
["timestamp","ask_amount","ask_price","bid_price","bid_amount"]
[1746213747064,3.60456,1849.2,1849.1,4.9515]
[1746213748664,4.02684646,1849.2,1849.1,6.03262]
[1746213748968,4.02684646,1849.2,1849.1,4.9515]
[1746213749362,4.02684646,1849.2,1849.1,6.03262]
[1746213749562,4.02684646,1849.2,1849.1,4.9515]
[1746213751264,4.02684646,1849.2,1849.1,6.03262]
[1746213751465,4.02684646,1849.2,1849.1,4.9515]
[1746213751868,4.02684646,1849.2,1849.1,6.03262]
[1746213753969,4.02684646,1849.2,1849.1,4.9515]
[1746213754974,4.02684646,1849.2,1849.1,6.03262]
[1746213758474,4.02684646,1849.2,1849.1,4.9515]
[1746213759174,4.02684646,1849.2,1849.1,6.03262]
[1746213759373,4.02684646,1849.2,1849.1,4.9515]
[1746213759672,4.02684646,1849.2,1849.1,46.83262]
[1746213760175,4.02684646,1849.2,1849.1,45.7515]
[1746213761074,2.30354646,1849.2,1849.1,46.83262]
[1746213761276,2.30354646,1849.2,1849.1,47.63272]
[1746213761569,2.30354646,1849.2,1849.1,46.5516]
[1746213761768,2.30354646,1849.2,1849.1,47.63272]
[1746213762167,2.30354646,1849.2,1849.1,46.5516]
[1746213762774,2.30354646,1849.2,1849.1,45.7515]
[1746213762967,3.92654646,1849.2,1849.1,45.7515]
[1746213763367,3.92654646,1849.2,1849.1,46.83262]
[1746213763678,3.92654646,1849.2,1849.1,45.7515]
[1746213763871,3.92654646,1849.2,1849.1,46.83262]
[1746213764171,3.92654646,1849.2,1849.1,45.7515]
[1746213764972,3.92654646,1849.2,1849.1,46.83262]
[1746213765174,2.30354646,1849.2,1849.1,46.83262]
[1746213765773,0.42228646,1849.2,1849.1,46.83262]
[1746213765969,1.50334646,1849.2,1849.1,46.83262]
[1746213766173,0.42228646,1849.2,1849.1,46.83262]
[1746213766772,0.42228646,1849.2,1849.1,47.67742]
[1746213770181,1.50334646,1849.2,1849.1,47.67742]
[1746213770377,1.50334646,1849.2,1849.1,21.81530971]
[1746213770976,1.50342887,1849.2,1849.1,62.61530971]
[1746213771376,0.42236887,1849.2,1849.1,63.41160971]
[1746213771573,1.50342887,1849.2,1849.1,63.41160971]
[1746213772382,1.50342887,1849.2,1849.1,62.33048971]
[1746213772584,1.50342887,1849.2,1849.1,63.41160971]
[1746213773178,1.50342887,1849.2,1849.1,47.62892]
[1746213774584,1.50342887,1849.2,1849.1,45.7515]
[1746213774882,3.17262887,1849.2,1849.1,46.83262]
[1746213779781,3.17262887,1849.2,1849.1,45.7515]
[1746213779981,3.17262887,1849.2,1849.1,3.2078]
[1746213780283,8.17262887,1849.2,1849.1,3.2078]
[1746213780478,1.08117,1849.0,1848.9,7.21593697]
[1746213781085,2.30623887,1849.0,1848.9,7.21593697]
[1746213781293,6.00223887,1849.0,1848.9,7.21593697]
[1746213781985,5.57987,1849.0,1848.9,7.21593697]
[1746213782191,6.86030621,1849.0,1848.9,7.21593697]
[1746213784190,1.08123,1848.9,1848.8,46.77738]
[1746213784893,1.50366621,1848.9,1848.8,46.77738]
[1746213785282,0.42243621,1848.9,1848.8,46.77738]
[1746213785788,1.50366621,1848.9,1848.8,46.77738]
[1746213788092,0.42243621,1848.9,1848.8,46.77738]
[1746213788284,1.50366621,1848.9,1848.8,46.77738]
[1746213795496,1.50366621,1848.9,1848.8,46.79089623]
[1746213795996,1.50366621,1848.9,1848.8,46.80441246]
[1746213796596,1.50366621,1848.9,1848.8,46.81792869]
[1746213797394,1.50366621,1848.9,1848.8,46.83144492]
[1746213797795,1.50366621,1848.9,1848.8,46.84496115]
[1746213798298,1.50366621,1848.9,1848.8,46.85140166]
[1746213798690,0.42243621,1848.9,1848.8,46.85140166]
[1746213803101,1.50366621,1848.9,1848.8,46.85140166]
[1746213803497,1.50366621,1848.9,1848.8,54.06733863]
[1746213806099,0.42243621,1848.9,1848.8,54.06733863]
[1746213806401,0.42243621,1848.9,1848.8,54.08093162]
[1746213806900,0.42243621,1848.9,1848.8,46.77738]
[1746213807104,0.42243621,1848.9,1848.8,46.87858764]
[1746213807701,0.42243621,1848.9,1848.8,46.89218063]
[1746213807902,1.50366621,1848.9,1848.8,46.89218063]
[1746213808202,1.50366621,1848.9,1848.8,46.90577362]
[1746213808605,0.42243621,1848.9,1848.8,46.90577362]
[1746213808802,0.42243621,1848.9,1848.8,46.91936661]
[1746213809508,0.42243621,1848.9,1848.8,46.92542332]
[1746213810002,1.50366621,1848.9,1848.8,46.92542332]
[1746213810207,0.42243621,1848.9,1848.8,46.92542332]
[1746213810504,1.50366621,1848.9,1848.8,46.92542332]
[1746213810704,3.20476621,1848.9,1848.8,3.35584332]
[1746213811106,6.90076621,1848.9,1848.8,3.35584332]
[1746213811398,6.90076621,1848.9,1848.8,4.43713332]
[1746213811602,6.90076621,1848.9,1848.8,3.35584332]
[1746213814905,6.90076621,1848.9,1848.8,3.36942038]
[1746213815402,6.90076621,1848.9,1848.8,3.2078]
[1746213815609,6.90076621,1848.9,1848.8,3.38301337]
[1746213816308,6.90076621,1848.9,1848.8,3.39660636]
[1746213816913,6.90076621,1848.9,1848.8,3.2078]
[1746213817218,3.20476621,1848.9,1848.8,3.41019935]
[1746213817418,3.20476621,1848.9,1848.8,3.2078]
[1746213817619,3.20476621,1848.9,1848.8,3.42379234]
[1746213818121,3.20476621,1848.9,1848.8,3.42986498]
[1746213821220,6.90076621,1848.9,1848.8,3.42986498]
[1746213821622,6.90076621,1848.9,1848.8,5.03556498]
[1746213822123,3.20476621,1848.9,1848.8,5.03556498]
[1746213823425,3.20476621,1848.9,1848.8,5.04914204]
[1746213823922,3.20476621,1848.9,1848.8,5.06273503]
[1746213824423,3.20476621,1848.9,1848.8,5.07632802]
[1746213824723,3.20453296,1848.9,1848.8,5.07632802]
[1746213825023,3.20453296,1848.9,1848.8,5.08992101]
[1746213825623,0.791336,1848.7,1848.6,3.2078]
[1746213825922,1.08141,1848.6,1848.5,7.21593697]
[1746213826222,3.47001,1848.6,1848.5,7.21593697]
[1746213826424,3.47001,1848.6,1848.5,8.84123697]
[1746213826720,3.89221296,1848.6,1848.5,8.84123697]
[1746213827024,3.89200197,1848.6,1848.5,8.84123697]
[1746213829217,3.89200197,1848.6,1848.5,7.21593697]
[1746213829625,3.89200197,1848.6,1848.4,46.67255]
[1746213829626,1.08147,1848.5,1848.4,46.67255]
[1746213829826,2.81597,1848.5,1848.4,46.67255]
[1746213830420,3.23796197,1848.5,1848.4,46.67255]
[1746213831226,6.93396197,1848.5,1848.4,46.67255]
[1746213831527,6.93396197,1848.5,1848.4,48.41495]
[1746213833220,3.23796197,1848.5,1848.4,5.02825]
[1746213834726,3.23796197,1848.5,1848.4,6.68945]
[1746213836128,6.93396197,1848.5,1848.4,3.48165]
[1746213837322,3.23796197,1848.5,1848.4,3.48165]
[1746213838331,1.50346197,1848.5,1848.4,3.48165]
[1746213839130,5.19946197,1848.5,1848.4,3.48165]
[1746213839917,6.80486197,1848.5,1848.4,3.48165]
[1746213842433,5.19946197,1848.5,1848.4,3.48165]
[1746213843124,1.50346197,1848.5,1848.4,3.48165]
[1746213843632,3.12646197,1848.5,1848.4,3.48165]
[1746213845133,6.82246197,1848.5,1848.4,3.48165]
[1746213846234,3.12646197,1848.5,1848.4,3.48165]
[1746213847130,6.82246197,1848.5,1848.4,3.48165]
[1746213847835,6.82246197,1848.5,1848.4,1.82045]
[1746213848037,7.68646197,1848.5,1848.4,1.82045]
[1746213848938,10.89426197,1848.5,1848.4,1.82045]
[1746213849537,6.60499197,1848.5,1848.4,6.10977]
[1746213849834,5.19946197,1848.5,1848.4,6.10977]
[1746213850035,5.19946197,1848.5,1848.4,5.82885]
[1746213850237,1.50346197,1848.5,1848.4,5.82885]
[1746213850539,1.50346197,1848.5,1848.4,7.45545]
[1746213852538,0.42199197,1848.5,1848.4,8.53697]
[1746213853633,0.796,1848.9,1848.7,1.08129]
[1746213853835,1.87727,1848.9,1848.8,4.28909]
[1746213854036,5.09257564,1848.9,1848.8,3.2078]
[1746213854534,5.09257564,1848.9,1848.8,6.5428]
[1746213855237,5.09257564,1848.9,1848.8,7.62409]
[1746213857134,8.78857564,1848.9,1848.8,7.62409]
[1746213857337,7.70734564,1848.9,1848.8,7.62409]
[1746213857738,5.19938939,1848.9,1848.8,7.62409]
[1746213858242,0.42215939,1848.9,1848.8,7.62409]
[1746213859541,0.42215939,1848.9,1848.8,48.42409]
[1746213870349,3.68451,1849.3,1849.2,1.08106]
[1746213870644,4.10530352,1849.3,1849.2,4.28886]
[1746213870846,0.42079352,1849.3,1849.2,4.28886]
[1746213871345,0.42079352,1849.3,1849.2,5.91976]
[1746213873443,1.91847,1849.4,1849.3,1.081]
[1746213874048,1.081,1849.3,1849.2,4.28881]
[1746213874352,4.04159654,1849.3,1849.2,4.28881]
[1746213876351,0.42059654,1849.3,1849.2,4.28881]
[1746213876551,0.42059654,1849.3,1849.2,5.90631]
[1746213879557,1.50159654,1849.3,1849.2,5.90631]
[1746213879753,3.10979654,1849.3,1849.2,5.90631]
[1746213880657,3.10979654,1849.3,1849.2,3.2078]
[1746213880852,3.10979654,1849.3,1849.2,4.28886]
[1746213882356,3.10979654,1849.3,1849.2,5.88836]
[1746213900173,2.70219,1849.6,1849.3,1.08091]
[1746213900485,1.08098,1849.4,1849.3,2.81081]
[1746213900688,1.081,1849.3,1849.2,4.2888]
[1746213900983,1.8731,1849.3,1849.2,6.0187]
[1746213903082,1.8731,1849.3,1849.2,4.9377]
[1746213903278,1.8731,1849.3,1849.2,4.28886]
[1746213903478,1.8731,1849.3,1849.2,5.99246]
[1746213906383,1.08099,1849.4,1849.3,1.081]
[1746213906576,1.08099,1849.4,1849.3,3.544]
[1746213909085,1.90983,1849.5,1849.4,1.08094]
[1746213909283,1.90983,1849.5,1849.4,6.72304]
[1746213911490,3.63123,1849.5,1849.4,6.72304]
[1746213912288,4.0537964,1849.5,1849.4,6.72304]
[1746213914790,4.0537964,1849.5,1849.4,5.6421]
[1746213915391,4.0537964,1849.5,1849.4,6.72304]
[1746213916092,4.0537964,1849.5,1849.4,5.6421]
[1746213916496,4.0537964,1849.5,1849.4,4.842]
[1746213916690,4.0537964,1849.5,1849.4,3.2078]
[1746213917087,7.7497964,1849.5,1849.4,3.2078]
[1746213918499,1.081,1849.3,1849.2,7.21593697]
[1746213918798,1.5035664,1849.3,1849.2,7.21593697]
[1746213918999,4.8475664,1849.3,1849.2,7.21593697]
[1746213920296,4.8475664,1849.3,1849.2,8.86303697]
[1746213921097,4.8475664,1849.3,1849.2,1.6471]
[1746213921499,1.5035664,1849.3,1849.2,2.72816]
[1746213922098,0.4225664,1849.3,1849.2,2.72816]
[1746213924799,0.4225664,1849.3,1849.2,18.51305265]
[1746213927698,0.4225664,1849.3,1849.2,21.72085265]
[1746213928594,0.4225664,1849.3,1849.2,14.50491568]
[1746213929001,0.4225664,1849.3,1849.2,19.50491568]
[1746213929405,0.8013,1849.7,1849.6,1.08082]
[1746213929406,1.8821,1849.7,1849.6,1.08082]
[1746213929602,1.8821,1849.7,1849.6,4.28862]
[1746213929795,1.08075,1849.8,1849.7,1.08076]
[1746213929996,1.08075,1849.8,1849.7,1.94186]
[1746213931303,7.16578625,1849.9,1849.8,1.08071]
[1746213933606,3.5766,1849.9,1849.8,1.08071]
[1746213935509,1.08071,1849.8,1849.7,1.94181]
[1746213938009,2.70121,1849.8,1849.7,1.94181]
[1746213938403,2.70121,1849.8,1849.7,0.8611]
[1746213938605,1.08076,1849.7,1849.6,3.2078]
[1746213938913,1.08082,1849.6,1849.5,1.08087]
[1746213939108,1.87792,1849.6,1849.5,1.08087]
[1746213943112,1.87792,1849.6,1849.5,2.83027]
[1746213944415,1.87792,1849.6,1849.5,6.03807]
[1746213946316,1.08082,1849.6,1849.5,6.03807]
[1746213947319,3.50079,1849.7,1849.6,1.08082]
[1746213947617,3.50079,1849.7,1849.6,2.69262]
[1746213952517,2.42,1849.7,1849.6,2.69262]
[1746213952912,3.50076,1849.7,1849.6,2.69262]
[1746213954319,3.9215642,1849.7,1849.6,2.69262]
[1746213954519,3.9215642,1849.7,1849.6,1.08082]
[1746213955915,1.08082,1849.6,1849.5,4.28865]
[1746213956121,2.72442,1849.6,1849.5,4.28865]
[1746213956320,3.1452242,1849.6,1849.5,4.28865]
[1746213956818,3.1452242,1849.6,1849.5,1.08085]
[1746213957720,3.1452242,1849.6,1849.5,5.92705]
[1746213961027,1.5016242,1849.6,1849.5,5.92705]
[1746213961227,0.4208042,1849.6,1849.5,5.92705]
[1746213963628,1.5016242,1849.6,1849.5,5.92705]
[1746213964024,0.4208042,1849.6,1849.5,5.92705]
[1746213964634,1.88031,1849.7,1849.6,1.08082]
[1746213964828,1.88031,1849.7,1849.6,2.78842]
[1746213965022,2.30108805,1849.7,1849.6,2.78842]
[1746213967434,3.91138805,1849.7,1849.6,2.78842]
[1746213970437,0.42077805,1849.7,1849.6,2.78842]
[1746213970935,1.50153805,1849.7,1849.6,3.63812]
[1746213971336,1.50153805,1849.7,1849.6,2.78842]
[1746213971736,3.16603805,1849.7,1849.6,2.78842]
[1746213973233,6.86203805,1849.7,1849.6,2.78842]
[1746213973434,7.73013805,1849.7,1849.6,2.78842]
[1746213974340,1.08082,1849.6,1849.5,11.51022502]
[1746213974541,3.65292,1849.6,1849.5,11.51022502]
[1746213974737,4.07369805,1849.6,1849.5,13.15612502]
[1746213975343,4.07369805,1849.6,1849.5,9.94832502]
[1746213977546,2.99287805,1849.6,1849.5,9.94832502]
[1746213977748,1.25617805,1849.6,1849.5,9.94832502]
[1746213978846,2.33699805,1849.6,1849.5,9.94832502]
[1746213979450,2.33699805,1849.6,1849.5,18.5199113]
[1746213979845,1.25617805,1849.6,1849.5,18.5199113]
[1746213981147,8.98351489,1850.0,1849.9,1.08065]
[1746213981335,8.98351489,1850.0,1849.9,4.28845]
[1746213981649,10.06410489,1850.0,1849.9,45.08845]
[1746213982045,10.06410489,1850.0,1849.9,46.70645]
[1746213982749,11.73610489,1850.0,1849.9,46.70645]
[1746213982936,11.73610489,1850.0,1849.9,45.6258]
[1746213983137,11.73610489,1850.0,1849.9,46.70645]
[1746213983847,2.75259,1850.0,1849.9,62.4996413]
[1746213984346,2.75259,1850.0,1849.9,59.2918413]
[1746213984541,2.75259,1850.0,1849.9,56.5931913]
[1746213985242,2.75259,1850.0,1849.9,15.7931913]
[1746213985443,2.75259,1850.0,1849.9,16.8738413]
[1746213986652,2.75259,1850.0,1849.9,18.5673413]
[1746213987150,6.44859,1850.0,1849.9,18.5673413]
[1746213987547,6.44859,1850.0,1849.9,2.77415]
[1746213988247,2.75259,1850.0,1849.9,2.77415]
[1746213988852,2.75259,1850.0,1849.9,1.6935]
[1746213989351,2.75259,1850.0,1849.9,2.77415]
[1746213991151,6.44859,1850.0,1849.9,2.77415]
[1746213991551,6.44859,1850.0,1849.9,1.6935]
[1746213991747,6.44859,1850.0,1849.9,4.9013]
[1746213991947,6.44859,1850.0,1849.9,5.98195]
[1746213992147,2.75259,1850.0,1849.9,4.9013]
[1746213993354,3.17184342,1850.0,1849.9,4.9013]
[1746213993648,3.17183831,1850.0,1849.9,5.98195]
[1746213994753,3.17183831,1850.0,1849.9,4.9013]
[1746213995454,3.17183831,1850.0,1849.9,1.6935]
[1746213995946,1.08065,1849.9,1849.8,0.8513]
[1746213996151,1.08071,1849.8,1849.7,3.2078]
[1746213996345,0.41924831,1849.8,1849.7,1.08076]
[1746213996551,1.49999831,1849.8,1849.7,46.72356]
[1746213997151,1.5000346,1849.8,1849.7,46.72356]
[1746213997854,1.5000276,1849.8,1849.7,46.72356]
[1746213998053,1.50006426,1849.8,1849.7,46.72356]
[1746213998252,5.19606847,1849.8,1849.7,46.72356]
[1746213998658,4.77675,1849.8,1849.7,46.72356]
[1746213998857,5.19609551,1849.8,1849.7,45.6428]
[1746213999546,6.94309551,1849.8,1849.7,45.6428]
[1746214000654,6.94309551,1849.8,1849.7,42.435]
[1746214000856,6.94309551,1849.8,1849.7,45.6428]
[1746214001043,6.94309551,1849.8,1849.7,42.435]
[1746214002344,6.94309551,1849.8,1849.7,43.51576]
[1746214002545,5.19609551,1849.8,1849.7,43.306]
[1746214002750,6.82849551,1849.8,1849.7,1.635]
[1746214003146,7.62079551,1849.8,1849.7,1.635]
[1746214003351,7.6209029,1849.8,1849.7,1.635]
[1746214003547,1.08076,1849.7,1849.6,40.8]
[1746214003753,3.56556,1849.7,1849.6,40.8]
[1746214004057,3.9850129,1849.7,1849.6,40.8]
[1746214004358,3.9850129,1849.7,1849.6,42.4354]
[1746214005157,7.6810129,1849.7,1849.6,42.4354]
[1746214008058,7.6810129,1849.7,1849.6,43.51622]
[1746214008358,3.9850129,1849.7,1849.6,42.4354]
[1746214010161,7.6810129,1849.7,1849.6,42.4354]
[1746214012854,7.6810129,1849.7,1849.6,40.8]
[1746214013055,1.08082,1849.6,1849.5,3.2078]
[1746214013255,1.08088,1849.5,1849.4,8.88670502]
[1746214013453,1.93178,1849.5,1849.4,49.68670502]
[1746214013655,2.3512329,1849.5,1849.4,49.68670502]
[1746214013862,4.0353329,1849.5,1849.4,49.68670502]
[1746214014262,7.7313329,1849.5,1849.4,52.89450502]
[1746214014661,7.7313329,1849.5,1849.4,49.68670502]
[1746214014866,7.7313329,1849.5,1849.4,45.6729]
[1746214015963,7.7313329,1849.5,1849.4,42.4651]
[1746214016167,7.7313329,1849.5,1849.4,1.6651]
[1746214020069,1.08094,1849.4,1849.3,0.8559]
[1746214020272,1.081,1849.3,1849.2,4.8986]
[1746214020571,1.9363,1849.3,1849.2,4.8986]
[1746214020765,2.3557529,1849.3,1849.2,4.8986]
[1746214020961,0.4194529,1849.3,1849.2,5.97966]
[1746214021164,0.4194529,1849.3,1849.2,6.85356]
[1746214022977,1.5004529,1849.3,1849.2,6.85356]
[1746214026782,1.5004529,1849.3,1849.2,4.8986]
[1746214027481,1.9257,1849.3,1849.2,4.8986]
[1746214027675,4.03473952,1849.3,1849.2,4.8986]
[1746214027976,4.03473952,1849.3,1849.0,13.88840502]
[1746214027977,7.95380551,1849.3,1849.0,13.88840502]
[1746214028180,1.08112,1849.1,1849.0,10.42940502]
[1746214028477,1.08112,1849.1,1849.0,13.16577502]
[1746214028679,2.31023225,1849.1,1849.0,13.16577502]
[1746214029272,2.31023225,1849.1,1849.0,12.08460502]
[1746214029676,2.31008736,1849.1,1849.0,13.16577502]
[1746214029880,2.31008736,1849.1,1849.0,12.08460502]
[1746214030484,1.89072,1849.1,1849.0,12.08460502]
[1746214030683,2.31010079,1849.1,1849.0,12.08460502]
[1746214030983,2.31012696,1849.1,1849.0,4.863]
[1746214031372,2.3100145,1849.1,1849.0,4.863]
[1746214032272,1.5004145,1849.1,1849.0,5.94417]
[1746214034083,1.5004145,1849.1,1849.0,4.863]
[1746214034779,1.5004145,1849.1,1849.0,5.94417]
[1746214035686,0.4192945,1849.1,1849.0,5.94417]
[1746214035984,1.5004145,1849.1,1849.0,5.94417]
[1746214038889,0.4192945,1849.1,1849.0,10.94417]
[1746214039481,0.4192945,1849.1,1849.0,51.74417]
[1746214040384,0.4192945,1849.1,1849.0,46.74417]
[1746214046692,0.4192945,1849.1,1849.0,47.53617]
[1746214047187,0.4192945,1849.1,1849.0,54.75777502]
[1746214047893,4.5e-06,1849.1,1849.0,59.75777502]
[1746214048593,1.08085,1849.6,1849.5,1.08088]
[1746214048791,1.08085,1849.6,1849.5,4.28868]
[1746214049485,1.08085,1849.6,1849.5,5.96588]
[1746214051294,2.76125,1849.6,1849.5,5.96588]
[1746214051989,1.08094,1849.4,1849.3,11.51037502]
[1746214052593,2.78724,1849.4,1849.3,11.51037502]
[1746214054288,4.40864,1849.4,1849.3,11.51037502]
[1746214054687,4.40864,1849.4,1849.2,12.55490753]
[1746214054688,1.081,1849.3,1849.2,1.08101]
[1746214054887,2.7024,1849.3,1849.2,1.08101]
[1746214055084,1.08109,1849.2,1849.1,1.08106]
[1746214055290,1.08112,1849.1,1849.0,11.51055502]
[1746214055586,2.74162,1849.1,1849.0,10.42940502]
[1746214055792,7.74162,1849.1,1849.0,7.22160502]
[1746214055992,9.41062,1849.1,1849.0,7.22160502]
[1746214056192,13.10662,1849.1,1849.0,7.22160502]
[1746214057099,13.10662,1849.1,1849.0,8.30277502]
[1746214057594,13.10662,1849.1,1849.0,7.22160502]
[1746214057793,8.10662,1849.1,1849.0,7.22160502]
[1746214058901,1.08123,1848.9,1848.8,6.76405]
[1746214059092,2.70642,1849.0,1848.9,1.08123]
[1746214059391,2.70642,1849.0,1848.8,5.6828]
[1746214059599,2.70643,1849.0,1848.9,1.08123]
[1746214059896,1.08123,1848.9,1848.8,6.76405]
[1746214060096,2.70643,1848.9,1848.8,6.76405]
[1746214060596,3.12580714,1848.9,1848.8,6.76405]
[1746214066193,3.12580714,1848.9,1848.8,6.76409]
[1746214066399,3.12580714,1848.9,1848.8,3.2078]
[1746214067499,3.12580714,1848.9,1848.8,4.28909]
[1746214069097,3.12580714,1848.9,1848.8,5.93189]
[1746214071304,3.12580714,1848.9,1848.8,3.2078]
[1746214071699,3.12580714,1848.9,1848.8,45.08909]
[1746214072401,3.12580714,1848.9,1848.8,44.0078]
[1746214074804,3.12580714,1848.9,1848.8,45.08909]
[1746214075305,3.12580714,1848.9,1848.8,44.0078]
[1746214076510,3.12580714,1848.9,1848.8,45.08909]
[1746214076707,3.12580714,1848.9,1848.8,46.81399]
[1746214077704,3.12580714,1848.9,1848.8,45.7327]
[1746214077906,1.50060714,1848.9,1848.8,46.81399]
[1746214078205,1.50060714,1848.9,1848.8,47.65809]
[1746214080312,1.50060714,1848.9,1848.8,46.5768]
[1746214080506,1.50060714,1848.9,1848.8,47.65809]
[1746214084312,1.50060714,1848.9,1848.8,46.5768]
[1746214086817,1.50060714,1848.9,1848.8,3.2078]
[1746214087017,3.15610714,1848.9,1848.8,3.2078]
[1746214087215,6.85210714,1848.9,1848.8,3.2078]
[1746214091721,6.85210714,1848.9,1848.8,5.94839]
[1746214091722,5.19660714,1848.9,1848.8,5.94839]
[1746214091914,5.19660714,1848.9,1848.8,6.74199]
[1746214092217,1.50060714,1848.9,1848.8,6.74199]
[1746214094722,1.50164194,1848.9,1848.8,6.74199]
[1746214102317,1.50164194,1848.9,1848.8,5.6607]
[1746214102629,1.50164194,1848.9,1848.8,6.74199]
[1746214102825,1.50164194,1848.9,1848.8,47.54199]
[1746214105929,0.42041194,1848.9,1848.8,47.54199]
[1746214107630,1.50164194,1848.9,1848.8,46.74839]
[1746214110035,0.42041194,1848.9,1848.8,46.74839]
[1746214110427,1.50164194,1848.9,1848.8,46.74839]
[1746214110728,0.42041194,1848.9,1848.8,46.74839]
[1746214111433,0.42041194,1848.9,1848.8,53.96999502]
[1746214113934,1.50164194,1848.9,1848.8,53.96999502]
[1746214115631,0.42041194,1848.9,1848.8,53.96999502]
[1746214116834,0.42041194,1848.9,1848.8,57.42299502]
[1746214118527,0.42041194,1848.9,1848.8,50.20139]
[1746214122839,0.42041194,1848.9,1848.8,58.76663451]
[1746214123041,0.42041194,1848.9,1848.8,69.59904204]
[1746214132145,0.42041194,1848.9,1848.8,27.13974204]
[1746214132334,1.20941194,1848.9,1848.8,27.13974204]
[1746214132539,3.87704194,1848.9,1848.8,23.68674204]
[1746214133956,8.87704194,1848.9,1848.8,23.68674204]
[1746214134249,8.87704194,1848.9,1848.8,22.60545204]
[1746214134649,8.87704194,1848.9,1848.8,23.68674204]
[1746214135148,12.57304194,1848.9,1848.8,23.68674204]
[1746214135848,7.57304194,1848.9,1848.8,23.68674204]
[1746214136049,7.57258811,1848.9,1848.8,23.68674204]
[1746214136347,3.87658811,1848.9,1848.8,23.68674204]
[1746214136945,3.87658811,1848.9,1848.8,4.28909]
[1746214137250,2.79535811,1848.9,1848.8,4.28909]
[1746214138539,3.87658811,1848.9,1848.8,4.28909]
[1746214138744,2.79535811,1848.9,1848.8,4.28909]
[1746214139656,3.87658811,1848.9,1848.8,4.28909]
[1746214143356,2.79535811,1848.9,1848.8,5.95099]
[1746214143557,3.87658811,1848.9,1848.8,5.95099]
[1746214143860,2.79535811,1848.9,1848.8,5.95099]
[1746214144152,0.41995811,1848.9,1848.8,5.95099]
[1746214144460,0.41995811,1848.9,1848.8,6.81409]
[1746214146457,0.8051,1849.2,1849.1,1.08112]
[1746214146658,0.8051,1849.2,1849.1,4.28892]
[1746214146958,1.88616,1849.2,1849.1,4.28892]
[1746214147455,3.47806,1849.2,1849.1,5.95292]
[1746214149456,3.47806,1849.2,1849.1,2.74512]
[1746214149654,3.47806,1849.2,1849.1,5.95292]
[1746214152568,2.397,1849.2,1849.1,5.95292]
[1746214153363,3.47806,1849.2,1849.1,5.95292]
[1746214155257,0.8051,1849.2,1849.1,6.81792]
[1746214156660,2.76278,1849.4,1849.1,5.7368]
[1746214156864,3.57888,1849.4,1849.3,4.2888]
[1746214158564,3.57888,1849.4,1849.3,5.9471]
[1746214160165,3.57888,1849.4,1849.3,6.7623]
[1746214161958,3.57884,1849.4,1849.3,6.7623]
[1746214162163,0.8161,1849.4,1849.3,6.7623]
[1746214162366,3.59275,1849.6,1849.5,1.08088]
[1746214162667,3.59275,1849.6,1849.5,4.28868]
[1746214163165,2.5119,1849.6,1849.5,6.01728]
[1746214163366,0.8274,1849.6,1849.5,6.01728]
[1746214164467,1.90822,1849.6,1849.5,6.01728]
[1746214165569,0.8274,1849.6,1849.5,6.01728]
[1746214166768,9.67353815,1849.8,1849.7,1.08076]
[1746214166974,12.20529815,1849.8,1849.7,4.28856]
[1746214167371,6.12098625,1849.8,1849.7,6.00856]
[1746214167970,0.8363,1849.8,1849.7,6.00856]
[1746214168171,1.08068,1849.9,1849.8,1.08065]
[1746214168374,1.08068,1849.9,1849.8,2.80065]
[1746214169277,2.79218,1849.9,1849.8,2.80065]
[1746214170171,6.48818,1849.9,1849.8,2.80065]
[1746214174180,2.79218,1849.9,1849.8,2.80065]
[1746214175077,6.48818,1849.9,1849.8,2.80065]
[1746214178673,6.48818,1849.9,1849.8,6.00845]
[1746214181287,2.79218,1849.9,1849.8,6.00845]
[1746214182174,6.48818,1849.9,1849.8,6.00845]
[1746214183582,6.48818,1849.9,1849.8,2.80065]
[1746214183988,6.48818,1849.9,1849.8,6.00845]
[1746214188184,6.48818,1849.9,1849.8,2.80065]
[1746214188485,6.48818,1849.9,1849.8,6.00845]
[1746214192289,6.48818,1849.9,1849.8,2.80065]
[1746214192476,1.08076,1849.7,1849.6,4.0823]
[1746214192682,1.08076,1849.7,1849.6,3.2078]
[1746214193080,3.61476,1849.7,1849.6,3.2078]
[1746214193276,7.31076,1849.7,1849.6,3.2078]
[1746214193482,12.31076,1849.7,1849.6,3.2078]
[1746214194084,1.08088,1849.5,1849.4,1.08094]
[1746214194586,1.08094,1849.4,1849.3,14.05036282]
[1746214194788,3.47404,1849.4,1849.3,14.05036282]
[1746214195586,2.3931,1849.4,1849.3,14.05036282]
[1746214195787,3.47404,1849.4,1849.3,14.05036282]
[1746214200289,1.08094,1849.4,1849.3,7.22401282]
[1746214200595,1.08106,1849.2,1849.1,3.2078]
[1746214201188,8.07096,1849.2,1849.1,3.2078]
[1746214202095,4.37496,1849.2,1849.1,3.2078]
[1746214203284,4.37496,1849.2,1849.1,4.9438]
[1746214204896,4.37496,1849.2,1849.1,1.736]
[1746214205397,4.37496,1849.2,1849.1,2.81712]
[1746214205695,1.90436,1849.2,1849.1,2.81712]
[1746214206089,1.08106,1849.2,1849.1,2.81712]
[1746214206490,1.08106,1849.2,1849.1,1.736]
[1746214206696,1.08106,1849.2,1849.1,6.02492]
[1746214207996,1.08117,1849.0,1848.9,3.2078]
[1746214208591,2.73997,1849.0,1848.9,3.2078]
[1746214209199,6.43597,1849.0,1848.9,3.2078]
[1746214210596,1.08129,1848.8,1848.7,3.2078]
[1746214211098,1.08147,1848.5,1848.4,5.02825]
[1746214212199,4.77747,1848.5,1848.4,5.02825]
[1746214212386,6.44897,1848.5,1848.4,5.02825]
[1746214213100,2.75297,1848.5,1848.4,5.02825]
[1746214213289,2.75297,1848.5,1848.4,6.68365]
[1746214214515,2.75297,1848.5,1848.4,3.47585]
[1746214216118,6.44897,1848.5,1848.4,3.47585]
[1746214217017,6.44897,1848.5,1848.4,1.82045]
[1746214219822,6.44897,1848.5,1848.4,3.39895]
[1746214220017,6.44897,1848.5,1848.4,4.48047]
[1746214220320,1.08147,1848.5,1848.4,4.48047]
[1746214220522,1.08147,1848.5,1848.4,3.39895]
[1746214220718,1.08147,1848.5,1848.4,4.48047]
[1746214221114,1.08147,1848.5,1848.4,3.39895]